[Event "Asian Amateur Rapid 2024"]
[Site "Al Ain"]
[Date "2024.12.15"]
[Round "2.20"]
[White "Khabdes, Bakytzhan"]
[Black "Hamdan Edrees, Alhamed"]
[Result "0-1"]
[ECO "E32"]
[WhiteElo "1437"]
[BlackElo "1939"]
[Annotator "RC"]
[PlyCount "106"]
[EventDate "2024.12.15"]
[EventType "swiss"]
[EventCountry "UAE"]
[SourceTitle "playchess.com"]
[Source "ChessBase"]
[SourceQuality "1"]
[TimeControl "900+10"]

1. d4 {[%emt 0:00:03]} Nf6 {[%emt 0:00:01]} 2. c4 {[%emt 0:00:02]} e6 {[%emt 0:00:01]} 3. Nc3 {[%emt 0:00:02]} Bb4 {[%emt 0:00:02]} 4. Qc2 {[%emt 0:15:43]} O-O {[%emt 0:00:10]} 5. f3 {[%emt 0:00:00]} d5 {[%emt 0:00:05]} 6. e3 {[%emt 0:00:00]} c5 {[%emt 0:00:17]} 7. a3 {[%emt 0:00:00]} Bxc3+ {[%emt 0:00:10]} 8. bxc3 {[%emt 0:00:00]} Qe7 {[%emt 0:00:07]} 9. Bd3 {[%emt 0:00:00]} Nc6 {[%emt 0:00:05]} 10. Ne2 {[%emt 0:00:00]} b6 {[%emt 0:00:11]} 11. O-O {[%emt 0:00:00]} Bb7 {[%emt 0:00:01]} 12. Ng3 {[%emt 0:00:00]} Rac8 {[%emt 0:00:11]} 13. cxd5 {[%emt 0:00:00]} exd5 {[%emt 0:00:19]} 14. e4 {[%emt 0:00:00]} cxd4 {[%emt 0:00:40]} 15. exd5 {[%emt 0:00:00]} Ne5 {[%emt 0:00:59]} 16. c4 {[%emt 0:00:00]} Bxd5 {[%emt 0:00:29]} 17. Bd2 {[%emt 0:00:00]} Nxd3 {[%emt 0:00:08]} 18. Qxd3 {[%emt 0:00:00]} Bxc4 {[%emt 0:00:04]} 19. Bb4 {[%emt 0:00:00]} Qxb4 {[%emt 0:00:14]} 20. axb4 {[%emt 0:00:00]} Bxd3 {[%emt 0:00:02]} 21. Rfd1 {[%emt 0:00:00]} Rc3 {[%emt 0:00:40]} 22. Rxa7 {[%emt 0:00:00]} Rd8 {[%emt 0:00:16]} 23. h4 {[%emt 0:00:00]} Nd5 {[%emt 0:00:04]} 24. Rb7 {[%emt 0:00:00]} Ne3 {[%emt 0:00:16]} 25. Rd2 {[%emt 0:00:00]} b5 {[%emt 0:00:07]} 26. Ne4 {[%emt 0:00:00]} Rc1+ {[%emt 0:00:08]} 27. Kh2 {[%emt 0:00:00]} Nf1+ {[%emt 0:00:03]} 28. Kh3 {[%emt 0:00:00]} Bxe4 {[%emt 0:00:02]} 29. Rxd4 {[%emt 0:00:00]} Bf5+ {[%emt 0:00:09]} 30. g4 {[%emt 0:00:00]} Rxd4 {[%emt 0:00:02]} 31. gxf5 {[%emt 0:00:00]} Rc8 {[%emt 0:00:04]} 32. Rxb5 {[%emt 0:00:00]} h5 {[%emt 0:00:04]} 33. f6 {[%emt 0:00:00]} g6 {[%emt 0:00:01]} 34. Re5 {[%emt 0:00:00]} Nd2 {[%emt 0:00:05]} 35. Re3 {[%emt 0:00:00]} Rxb4 {[%emt 0:00:05]} 36. Rd3 {[%emt 0:00:00]} Nf1 {[%emt 0:00:32]} 37. Kg2 {[%emt 0:00:00]} Rb1 {[%emt 0:00:07]} 38. f4 {[%emt 0:00:00]} Re8 {[%emt 0:00:08]} 39. f5 {[%emt 0:00:00]} Ne3+ {[%emt 0:00:02]} 40. Kf2 {[%emt 0:00:00]} Nxf5 {[%emt 0:00:02]} 41. Ra3 {[%emt 0:00:00]} Nxh4 {[%emt 0:00:04]} 42. Ra7 {[%emt 0:00:00]} Nf5 {[%emt 0:00:05]} 43. Ra3 {[%emt 0:00:00]} h4 {[%emt 0:00:02]} 44. Rc3 {[%emt 0:00:00]} Re6 {[%emt 0:00:06]} 45. Rc8+ {[%emt 0:00:00]} Kh7 {[%emt 0:00:01]} 46. Rc2 {[%emt 0:00:00]} Rxf6 {[%emt 0:00:04]} 47. Rc7 {[%emt 0:00:00]} g5 {[%emt 0:00:10]} 48. Kf3 {[%emt 0:00:00]} Rb4 {[%emt 0:00:08]} 49. Ra7 {[%emt 0:00:00]} Kg6 {[%emt 0:00:08]} 50. Ra8 {[%emt 0:00:00]} g4+ {[%emt 0:00:05]} 51. Kg2 {[%emt 0:00:00]} Ne3+ {[%emt 0:00:04]} 52. Kg1 {[%emt 0:00:00]} Rf1+ {[%emt 0:00:03]} 53. Kh2 {[%emt 0:00:00]} Rb2# {[%emt 0:00:01]} 0-1

[Event "Asian Amateur Rapid 2024"]
[Site "Al Ain"]
[Date "2024.12.15"]
[Round "2.21"]
[White "Al Hosni, Khalfan"]
[Black "Hamad Shuaib Al Kaff"]
[Result "0-1"]
[ECO "C42"]
[WhiteElo "1749"]
[BlackElo "1710"]
[Annotator "NA RC"]
[PlyCount "44"]
[EventDate "2024.12.15"]
[EventType "swiss"]
[EventCountry "UAE"]
[SourceTitle "playchess.com"]
[Source "ChessBase"]
[SourceQuality "1"]
[TimeControl "900+10"]

1. e4 {[%emt 0:00:01]} e5 {[%emt 0:00:02]} 2. Nf3 {[%emt 0:00:02]} Nf6 {[%emt 0:00:02]} 3. Nc3 {[%emt 0:00:02]} Bb4 {[%emt 0:00:02]} 4. d3 {[%emt 0:00:20]} d5 {[%emt 0:00:03]} 5. exd5 {[%emt 0:00:35]} Nxd5 {[%emt 0:00:02]} 6. Bd2 {[%emt 0:00:02]} Nxc3 {[%emt 0:00:03]} 7. bxc3 {[%emt 0:00:03]} Bd6 {[%emt 0:00:19]} 8. Be2 {[%emt 0:00:02]} O-O {[%emt 0:00:05]} 9. O-O {[%emt 0:00:03]} Nc6 {[%emt 0:00:58]} 10. Rb1 {[%emt 0:00:03]} b6 {[%emt 0:00:14]} 11. Ng5 {[%emt 0:00:24]} Bb7 {[%emt 0:00:33]} 12. Ne4 {[%emt 0:00:15]} Be7 {[%emt 0:00:13]} 13. Re1 {[%emt 0:00:37]} f5 {[%emt 0:01:11]} 14. Ng3 {[%emt 0:00:04]} Bg5 {[%emt 0:00:05]} 15. Bf1 {[%emt 0:00:16]} Bxd2 {[%emt 0:02:17]} 16. Qxd2 {[%emt 0:00:02]} Qf6 {[%emt 0:00:32]} 17. f4 {[%emt 0:04:23]} Rae8 {[%emt 0:01:14]} 18. Rb5 {[%emt 0:01:13]} Qh6 {[%emt 0:01:53]} 19. Qc1 {[%emt 0:01:35]} a6 {[%emt 0:02:03]} 20. Rd5 {[%emt 0:01:05]} exf4 {[%emt 0:00:43]} 21. Re4 {[%emt 0:07:33]} Re7 22. Rxe7 {[%emt 0:00:00]} Re8 {[%emt 0:00:12]} 0-1

[Event "Asian Amateur Rapid 2024"]
[Site "Al Ain"]
[Date "2024.12.15"]
[Round "2.22"]
[White "Medetuly, Nurdaulet"]
[Black "Al Mamari, Said Ahmed"]
[Result "1-0"]
[ECO "A57"]
[WhiteElo "1618"]
[BlackElo "1707"]
[Annotator "NA RC"]
[PlyCount "81"]
[EventDate "2024.12.15"]
[EventType "swiss"]
[EventCountry "UAE"]
[SourceTitle "playchess.com"]
[Source "ChessBase"]
[SourceQuality "1"]
[TimeControl "900+10"]

1. d4 {[%emt 0:00:10]} Nf6 {[%emt 0:00:02]} 2. c4 {[%emt 0:00:02]} c5 {[%emt 0:00:01]} 3. d5 {[%emt 0:00:02]} b5 {[%emt 0:00:01]} 4. Nc3 {[%emt 0:00:15]} bxc4 {[%emt 0:00:21]} 5. e4 {[%emt 0:00:07]} d6 {[%emt 0:00:03]} 6. Bxc4 {[%emt 0:00:22]} g6 {[%emt 0:00:08]} 7. h3 {[%emt 0:00:09]} Bg7 {[%emt 0:00:02]} 8. Nf3 {[%emt 0:00:03]} O-O {[%emt 0:00:03]} 9. O-O {[%emt 0:15:30]} Nbd7 {[%emt 0:00:09]} 10. Be3 {[%emt 0:00:00]} Rb8 {[%emt 0:00:15]} 11. Qc2 {[%emt 0:00:00]} Nb6 {[%emt 0:00:13]} 12. Be2 {[%emt 0:00:00]} Bb7 {[%emt 0:01:23]} 13. Nd2 {[%emt 0:00:00]} a6 {[%emt 0:00:43]} 14. a3 {[%emt 0:00:00]} Qd7 {[%emt 0:00:04]} 15. Rfc1 {[%emt 0:00:00]} e6 {[%emt 0:00:03]} 16. dxe6 {[%emt 0:00:00]} Qxe6 {[%emt 0:00:06]} 17. b4 {[%emt 0:00:00]} Nbd7 {[%emt 0:00:24]} 18. Rab1 {[%emt 0:00:00]} Rfc8 {[%emt 0:00:07]} 19. b5 {[%emt 0:00:00]} axb5 {[%emt 0:00:26]} 20. Bxb5 {[%emt 0:00:00]} d5 {[%emt 0:02:28]} 21. exd5 {[%emt 0:00:00]} Nxd5 {[%emt 0:00:06]} 22. Bxd7 {[%emt 0:00:00]} Qxd7 {[%emt 0:00:02]} 23. Nxd5 {[%emt 0:00:00]} Qxd5 {[%emt 0:00:03]} 24. Nf3 {[%emt 0:00:00]} Qh5 {[%emt 0:00:21]} 25. Bf4 {[%emt 0:00:00]} Bxf3 {[%emt 0:01:11]} 26. Rxb8 {[%emt 0:00:00]} Rxb8 {[%emt 0:00:03]} 27. Bxb8 {[%emt 0:00:00]} Qg5 {[%emt 0:00:05]} 28. Bg3 {[%emt 0:00:00]} Bd4 {[%emt 0:00:03]} 29. Kh2 {[%emt 0:00:00]} Bd5 {[%emt 0:00:21]} 30. Re1 {[%emt 0:00:00]} h5 {[%emt 0:00:20]} 31. h4 {[%emt 0:00:01]} Qg4 {[%emt 0:00:57]} 32. Qe2 {[%emt 0:00:44]} Qf5 {[%emt 0:00:11]} 33. Qe8+ {[%emt 0:00:40]} Kg7 {[%emt 0:00:21]} 34. Be5+ {[%emt 0:00:33]} Bxe5+ {[%emt 0:00:18]} 35. Qxe5+ {[%emt 0:00:00]} Qxe5+ {[%emt 0:00:06]} 36. Rxe5 {[%emt 0:00:01]} Be6 {[%emt 0:00:11]} 37. Rxc5 {[%emt 0:00:02]} Kf6 {[%emt 0:00:01]} 38. a4 {[%emt 0:00:02]} Ke7 {[%emt 0:00:02]} 39. a5 {[%emt 0:00:06]} Kd6 {[%emt 0:00:01]} 40. Rc3 {[%emt 0:00:10]} Bc8 {[%emt 0:00:07]} 41. Rxc8 {[%emt 0:00:02]} 1-0

[Event "Asian Amateur Rapid 2024"]
[Site "Al Ain"]
[Date "2024.12.15"]
[Round "2.23"]
[White "Saqar Essa Khamis"]
[Black "Maleki, Alimohammad"]
[Result "1-0"]
[ECO "B15"]
[WhiteElo "1684"]
[BlackElo "1488"]
[Annotator "NA RC"]
[PlyCount "51"]
[EventDate "2024.12.15"]
[EventType "swiss"]
[EventCountry "UAE"]
[SourceTitle "playchess.com"]
[Source "ChessBase"]
[SourceQuality "1"]
[TimeControl "900+10"]

1. e4 {[%emt 0:00:03]} c6 {[%emt 0:00:01]} 2. d4 {[%emt 0:00:04]} d5 {[%emt 0:00:01]} 3. Nc3 {[%emt 0:00:01]} dxe4 {[%emt 0:00:02]} 4. Nxe4 {[%emt 0:00:02]} Nf6 {[%emt 0:00:01]} 5. Nxf6+ {[%emt 0:00:02]} exf6 {[%emt 0:00:01]} 6. Bd3 {[%emt 0:00:01]} Bd6 {[%emt 0:00:22]} 7. Qh5 {[%emt 0:00:02]} f5 {[%emt 0:05:30]} 8. Ne2 {[%emt 0:01:23]} Nd7 {[%emt 0:02:28]} 9. Qxf5 {[%emt 0:02:29]} Nf6 {[%emt 0:00:05]} 10. Qg5 {[%emt 0:00:56]} h6 {[%emt 0:01:15]} 11. Qxg7 {[%emt 0:01:38]} Rg8 {[%emt 0:00:32]} 12. Qxh6 {[%emt 0:00:14]} Rxg2 {[%emt 0:00:35]} 13. Bg5 {[%emt 0:00:55]} Qa5+ {[%emt 0:01:28]} 14. Bd2 {[%emt 0:00:58]} Qd8 {[%emt 0:00:01]} 15. O-O-O {[%emt 0:02:09]} Bg4 {[%emt 0:02:33]} 16. Rde1 {[%emt 0:01:32]} Kd7 {[%emt 0:00:01]} 17. Bg5 {[%emt 0:01:13]} Rxf2 {[%emt 0:01:02]} 18. Qh4 {[%emt 0:00:51]} Rxe2 {[%emt 0:01:47]} 19. Bxe2 {[%emt 0:00:06]} Bxe2 {[%emt 0:00:03]} 20. Rxe2 {[%emt 0:00:01]} Qh8 {[%emt 0:00:19]} 21. Bxf6 {[%emt 0:00:23]} Qxh4 {[%emt 0:00:05]} 22. Bxh4 {[%emt 0:00:01]} Bf4+ {[%emt 0:00:01]} 23. Kd1 {[%emt 0:00:04]} Rh8 {[%emt 0:00:06]} 24. Bf6 {[%emt 0:00:07]} Rh6 {[%emt 0:00:36]} 25. Be5 {[%emt 0:00:09]} Bxe5 {[%emt 0:00:25]} 26. Rxe5 {[%emt 0:00:17]} 1-0

[Event "Asian Amateur Rapid 2024"]
[Site "Al Ain"]
[Date "2024.12.15"]
[Round "2.24"]
[White "Ahsan Feroz"]
[Black "Mohammed Saeed Alshamsi"]
[Result "1-0"]
[ECO "A31"]
[WhiteElo "1795"]
[BlackElo "1535"]
[Annotator "NA RC"]
[PlyCount "98"]
[EventDate "2024.12.15"]
[EventType "swiss"]
[EventCountry "UAE"]
[SourceTitle "playchess.com"]
[Source "ChessBase"]
[SourceQuality "1"]
[TimeControl "900+10"]

1. d4 {[%emt 0:00:01]} Nf6 {[%emt 0:00:02]} 2. c4 {[%emt 0:00:01]} c5 {[%emt 0:00:08]} 3. Nf3 {[%emt 0:00:01]} cxd4 {[%emt 0:00:17]} 4. Nxd4 {[%emt 0:00:01]} Nc6 {[%emt 0:00:22]} 5. g3 {[%emt 0:00:11]} Qb6 {[%emt 0:00:39]} 6. Nb3 {[%emt 0:00:15]} d6 {[%emt 0:02:48]} 7. Bg2 {[%emt 0:00:14]} Qb4+ {[%emt 0:00:48]} 8. N1d2 {[%emt 0:00:20]} Be6 {[%emt 0:01:33]} 9. O-O {[%emt 0:02:10]} Bxc4 {[%emt 0:01:37]} 10. Nxc4 {[%emt 0:00:03]} Qxc4 {[%emt 0:00:03]} 11. Be3 {[%emt 0:00:14]} Qe6 {[%emt 0:01:00]} 12. Rc1 {[%emt 0:01:01]} Qd7 {[%emt 0:00:12]} 13. Nd4 {[%emt 0:02:54]} Rc8 {[%emt 0:02:10]} 14. Qa4 {[%emt 0:00:12]} d5 {[%emt 0:00:54]} 15. Nxc6 {[%emt 0:00:40]} bxc6 {[%emt 0:00:16]} 16. Bxa7 {[%emt 0:00:43]} e6 {[%emt 0:01:29]} 17. Bc5 {[%emt 0:00:11]} Bd6 {[%emt 0:00:25]} 18. Qa3 {[%emt 0:00:49]} Rd8 {[%emt 0:00:20]} 19. Bxd6 {[%emt 0:01:21]} Qxd6 {[%emt 0:00:02]} 20. Qxd6 {[%emt 0:01:11]} Rxd6 {[%emt 0:00:02]} 21. Rc2 {[%emt 0:00:02]} Nd7 {[%emt 0:01:48]} 22. Rfc1 {[%emt 0:00:05]} c5 {[%emt 0:00:02]} 23. b3 {[%emt 0:06:20]} Ke7 {[%emt 0:00:06]} 24. Kf1 {[%emt 0:00:00]} Ra8 {[%emt 0:00:05]} 25. e4 {[%emt 0:00:00]} dxe4 {[%emt 0:01:01]} 26. Bxe4 {[%emt 0:00:00]} Rb8 {[%emt 0:00:20]} 27. Ke2 {[%emt 0:00:00]} g6 {[%emt 0:00:26]} 28. Rd2 {[%emt 0:00:00]} Rxd2+ {[%emt 0:00:18]} 29. Kxd2 {[%emt 0:00:00]} f5 {[%emt 0:00:04]} 30. Bd3 {[%emt 0:00:00]} e5 {[%emt 0:00:13]} 31. Bc4 {[%emt 0:00:00]} Rb6 {[%emt 0:00:07]} 32. a4 {[%emt 0:00:00]} Rd6+ {[%emt 0:00:02]} 33. Ke2 {[%emt 0:00:00]} e4 {[%emt 0:00:05]} 34. a5 {[%emt 0:00:00]} Ne5 {[%emt 0:00:40]} 35. Bb5 {[%emt 0:00:00]} Rd3 {[%emt 0:00:22]} 36. Bxd3 {[%emt 0:00:08]} exd3+ {[%emt 0:00:03]} 37. Kd2 {[%emt 0:00:05]} Kd6 {[%emt 0:00:01]} 38. f4 {[%emt 0:00:16]} Nf3+ {[%emt 0:00:03]} 39. Kxd3 {[%emt 0:00:03]} Kc6 {[%emt 0:00:01]} 40. h3 {[%emt 0:00:50]} Kb5 {[%emt 0:00:01]} 41. a6 {[%emt 0:00:04]} Kxa6 {[%emt 0:00:04]} 42. Rxc5 {[%emt 0:00:13]} Kb6 {[%emt 0:00:07]} 43. Rc1 {[%emt 0:00:16]} g5 {[%emt 0:01:14]} 44. Ke3 {[%emt 0:00:14]} g4 {[%emt 0:00:00]} 45. hxg4 {[%emt 0:00:03]} fxg4 {[%emt 0:00:00]} 46. Rf1 {[%emt 0:00:26]} Nh2 {[%emt 0:00:00]} 47. Rh1 {[%emt 0:00:02]} Nf3 {[%emt 0:00:00]} 48. Rf1 {[%emt 0:00:27]} Nh2 {[%emt 0:00:00]} 49. Rf2 {[%emt 0:00:03]} Nf3 {[%emt 0:00:00]} 1-0

[Event "Asian Amateur Rapid 2024"]
[Site "Al Ain"]
[Date "2024.12.15"]
[Round "2.26"]
[White "Obado, Sean Adrich"]
[Black "Chekanov, Timur"]
[Result "1/2-1/2"]
[ECO "B22"]
[WhiteElo "1605"]
[BlackElo "1865"]
[Annotator "NA RC"]
[PlyCount "163"]
[EventDate "2024.12.15"]
[EventType "swiss"]
[EventCountry "UAE"]
[SourceTitle "playchess.com"]
[Source "ChessBase"]
[SourceQuality "1"]
[TimeControl "900+10"]

1. e4 {[%emt 0:00:02]} c5 {[%emt 0:00:04]} 2. c3 {[%emt 0:00:05]} d5 {[%emt 0:00:04]} 3. exd5 {[%emt 0:00:02]} Qxd5 {[%emt 0:00:01]} 4. d4 {[%emt 0:00:01]} Nc6 {[%emt 0:00:15]} 5. Nf3 {[%emt 0:00:05]} Bg4 {[%emt 0:01:56]} 6. Be2 {[%emt 0:00:11]} cxd4 {[%emt 0:00:36]} 7. cxd4 {[%emt 0:00:06]} e6 {[%emt 0:00:05]} 8. h3 {[%emt 0:00:46]} Bh5 {[%emt 0:01:02]} 9. O-O {[%emt 0:00:08]} Nf6 {[%emt 0:00:02]} 10. Nc3 {[%emt 0:00:06]} Qd8 {[%emt 0:00:47]} 11. Bg5 {[%emt 0:00:11]} Be7 {[%emt 0:00:01]} 12. Bxf6 {[%emt 0:02:01]} Bxf6 {[%emt 0:00:01]} 13. d5 {[%emt 0:00:01]} exd5 {[%emt 0:00:02]} 14. Nxd5 {[%emt 0:01:38]} O-O {[%emt 0:00:09]} 15. Qb3 {[%emt 0:00:36]} Bxf3 {[%emt 0:04:50]} 16. Bxf3 {[%emt 0:02:07]} Nd4 {[%emt 0:00:10]} 17. Nxf6+ {[%emt 0:00:14]} Qxf6 {[%emt 0:00:01]} 18. Qxb7 {[%emt 0:00:01]} Rab8 {[%emt 0:00:29]} 19. Qxa7 {[%emt 0:02:33]} Nxf3+ {[%emt 0:00:09]} 20. gxf3 {[%emt 0:00:01]} Qf5 {[%emt 0:07:46]} 21. f4 Qxf4 {[%emt 0:00:00]} 22. Qd4 {[%emt 0:07:55]} Qf3 23. Qe3 {[%emt 0:00:10]} Qf6 {[%emt 0:00:00]} 24. b3 {[%emt 0:00:00]} Rfe8 {[%emt 0:00:00]} 25. Qg3 {[%emt 0:00:00]} Rb5 {[%emt 0:00:00]} 26. Rae1 {[%emt 0:00:00]} Ra8 {[%emt 0:00:00]} 27. Re4 {[%emt 0:00:00]} h6 {[%emt 0:00:00]} 28. a4 {[%emt 0:00:14]} Rf5 {[%emt 0:00:00]} 29. Kh1 {[%emt 0:00:13]} Rf3 {[%emt 0:00:00]} 30. Qg2 {[%emt 0:00:07]} Rxb3 {[%emt 0:00:00]} 31. Re3 {[%emt 0:00:25]} Rbb8 {[%emt 0:00:10]} 32. Rg1 {[%emt 0:00:09]} Rxa4 {[%emt 0:00:20]} 33. Rf3 {[%emt 0:00:02]} Qe5 {[%emt 0:01:21]} 34. Re3 {[%emt 0:00:03]} Qd4 {[%emt 0:00:11]} 35. Rd3 {[%emt 0:00:31]} Qb2 {[%emt 0:00:15]} 36. Rd2 {[%emt 0:00:01]} Qe5 {[%emt 0:00:04]} 37. Rd5 {[%emt 0:00:15]} Qb2 {[%emt 0:00:12]} 38. Rd2 {[%emt 0:00:03]} Qf6 {[%emt 0:00:09]} 39. Rd6 {[%emt 0:00:07]} Qg5 {[%emt 0:00:14]} 40. Qxg5 {[%emt 0:00:03]} hxg5 {[%emt 0:00:01]} 41. Rxg5 {[%emt 0:00:01]} Ra2 {[%emt 0:00:21]} 42. Kg2 {[%emt 0:00:09]} Rbb2 {[%emt 0:00:10]} 43. Rd8+ {[%emt 0:00:23]} Kh7 {[%emt 0:00:01]} 44. Rf5 {[%emt 0:00:00]} f6 {[%emt 0:00:13]} 45. Rd7 {[%emt 0:00:17]} Kg6 {[%emt 0:00:10]} 46. Rf3 {[%emt 0:00:00]} Kh6 {[%emt 0:00:02]} 47. Rc7 {[%emt 0:00:24]} Rd2 {[%emt 0:00:16]} 48. Re7 {[%emt 0:00:20]} Rab2 {[%emt 0:00:14]} 49. Rf4 {[%emt 0:00:06]} Kg6 {[%emt 0:00:12]} 50. Rg4+ {[%emt 0:00:01]} Kf5 {[%emt 0:00:03]} 51. Rexg7 {[%emt 0:00:27]} Rxf2+ {[%emt 0:00:04]} 52. Kg1 {[%emt 0:00:09]} Rfd2 {[%emt 0:00:15]} 53. Rg2 {[%emt 0:00:01]} Rd1+ {[%emt 0:00:16]} 54. Kh2 {[%emt 0:00:02]} Rbb1 {[%emt 0:00:07]} 55. Rg1 {[%emt 0:00:08]} Rb2+ {[%emt 0:00:14]} 56. R7g2 {[%emt 0:00:17]} Rxg2+ {[%emt 0:00:10]} 57. Kxg2 {[%emt 0:00:26]} Rd2+ {[%emt 0:00:10]} 58. Kg3 {[%emt 0:00:06]} Rd3+ {[%emt 0:00:03]} 59. Kg2 {[%emt 0:00:16]} Kg5 {[%emt 0:00:14]} 60. Kf2+ {[%emt 0:00:07]} Kf4 {[%emt 0:00:15]} 61. Rg4+ {[%emt 0:00:02]} Kf5 {[%emt 0:00:01]} 62. Rh4 {[%emt 0:00:06]} Ra3 {[%emt 0:00:12]} 63. Kg2 {[%emt 0:00:10]} Ke5 {[%emt 0:00:15]} 64. Rb4 {[%emt 0:00:19]} f5 {[%emt 0:00:04]} 65. Rb5+ {[%emt 0:00:03]} Kf4 {[%emt 0:00:01]} 66. Rb4+ {[%emt 0:00:00]} Ke3 {[%emt 0:00:28]} 67. Kg3 {[%emt 0:00:09]} Ra1 {[%emt 0:00:01]} 68. Rb3+ {[%emt 0:00:06]} Ke4 {[%emt 0:00:02]} 69. Rb4+ {[%emt 0:00:01]} Ke5 {[%emt 0:00:01]} 70. Rb5+ {[%emt 0:00:27]} Kf6 {[%emt 0:00:01]} 71. h4 {[%emt 0:00:23]} Ra3+ {[%emt 0:00:37]} 72. Kf4 {[%emt 0:00:16]} Ra4+ {[%emt 0:00:03]} 73. Kg3 {[%emt 0:00:01]} Rg4+ {[%emt 0:00:01]} 74. Kh3 {[%emt 0:00:01]} Rg1 {[%emt 0:00:31]} 75. Rb2 {[%emt 0:00:21]} f4 {[%emt 0:00:11]} 76. Rg2 {[%emt 0:00:09]} Rf1 {[%emt 0:00:08]} 77. Kg4 {[%emt 0:00:11]} f3 {[%emt 0:00:08]} 78. Rg3 {[%emt 0:00:18]} f2 {[%emt 0:00:03]} 79. Rf3+ {[%emt 0:00:01]} Ke5 {[%emt 0:00:20]} 80. Kg3 {[%emt 0:00:08]} Ke4 {[%emt 0:00:09]} 81. Rxf2 {[%emt 0:00:04]} Rxf2 {[%emt 0:00:02]} 82. Kxf2 {[%emt 0:00:02]} 1/2-1/2

[Event "Asian Amateur Rapid 2024"]
[Site "Al Ain"]
[Date "2024.12.15"]
[Round "2.28"]
[White "Godhani Maharth"]
[Black "Al Hinai, Qusay"]
[Result "1-0"]
[ECO "D94"]
[WhiteElo "1798"]
[BlackElo "1862"]
[Annotator "NA RC"]
[PlyCount "115"]
[EventDate "2024.12.15"]
[EventType "swiss"]
[EventCountry "UAE"]
[SourceTitle "playchess.com"]
[Source "ChessBase"]
[SourceQuality "1"]
[TimeControl "900+10"]

1. d4 {[%emt 0:00:03]} d5 {[%emt 0:00:00]} 2. Nf3 {[%emt 0:00:01]} Nf6 {[%emt 0:00:01]} 3. e3 {[%emt 0:00:01]} g6 {[%emt 0:00:00]} 4. c4 {[%emt 0:00:04]} c6 {[%emt 0:00:06]} 5. Nc3 {[%emt 0:00:05]} Bg7 {[%emt 0:00:02]} 6. Bd3 {[%emt 0:00:04]} dxc4 {[%emt 0:00:08]} 7. Bxc4 {[%emt 0:00:02]} Bg4 {[%emt 0:00:06]} 8. Bxf7+ {[%emt 0:00:10]} Kxf7 {[%emt 0:00:02]} 9. Ne5+ {[%emt 0:00:02]} Ke8 {[%emt 0:00:11]} 10. Nxg4 {[%emt 0:00:01]} Nxg4 {[%emt 0:00:14]} 11. Qxg4 {[%emt 0:00:08]} Nd7 {[%emt 0:00:04]} 12. h4 {[%emt 0:00:11]} Rf8 {[%emt 0:00:15]} 13. h5 {[%emt 0:00:26]} Nf6 {[%emt 0:00:01]} 14. Qg3 {[%emt 0:00:01]} Kf7 {[%emt 0:00:43]} 15. hxg6+ {[%emt 0:00:02]} hxg6 {[%emt 0:00:01]} 16. Bd2 {[%emt 0:00:02]} Qb6 {[%emt 0:00:24]} 17. O-O-O {[%emt 0:00:15]} a5 {[%emt 0:00:21]} 18. Ne2 {[%emt 0:01:00]} Qa6 {[%emt 0:00:36]} 19. Nf4 {[%emt 0:00:09]} Qc4+ {[%emt 0:02:18]} 20. Kb1 {[%emt 0:00:01]} Ke8 {[%emt 0:00:18]} 21. Nxg6 {[%emt 0:00:13]} Ne4 {[%emt 0:00:43]} 22. Qh4 {[%emt 0:01:26]} Qd3+ {[%emt 0:00:22]} 23. Ka1 {[%emt 0:00:10]} Rf7 {[%emt 0:01:50]} 24. Nf4 {[%emt 0:00:14]} Qc2 {[%emt 0:00:15]} 25. Bc1 {[%emt 0:02:05]} Qxf2 {[%emt 0:00:53]} 26. Qh7 {[%emt 0:00:47]} Ng3 {[%emt 0:01:51]} 27. Rd2 {[%emt 0:02:42]} Qxe3 {[%emt 0:01:08]} 28. Rd3 {[%emt 0:00:02]} Qf2 {[%emt 0:00:48]} 29. Qg8+ {[%emt 0:00:25]} Rf8 {[%emt 0:00:27]} 30. Qxg7 {[%emt 0:00:39]} Nxh1 {[%emt 0:00:12]} 31. Ng6 {[%emt 0:00:28]} Qf7 {[%emt 0:01:43]} 32. Qxf8+ {[%emt 0:00:02]} Qxf8 {[%emt 0:00:01]} 33. Nxf8 {[%emt 0:00:01]} Kxf8 {[%emt 0:00:01]} 34. Rh3 {[%emt 0:00:01]} Kf7 {[%emt 0:00:31]} 35. Rxh1 {[%emt 0:00:04]} Rg8 {[%emt 0:00:02]} 36. Rf1+ {[%emt 0:00:01]} Ke6 {[%emt 0:00:03]} 37. Rf2 {[%emt 0:00:05]} Kd5 {[%emt 0:00:14]} 38. Bd2 {[%emt 0:00:05]} a4 {[%emt 0:00:15]} 39. Bc3 {[%emt 0:00:02]} Rg3 {[%emt 0:00:06]} 40. Kb1 {[%emt 0:00:05]} a3 {[%emt 0:00:01]} 41. Kc2 {[%emt 0:00:04]} axb2 {[%emt 0:00:10]} 42. Bxb2 {[%emt 0:00:02]} b5 {[%emt 0:00:09]} 43. Re2 {[%emt 0:00:36]} Kc4 {[%emt 0:00:18]} 44. a3 {[%emt 0:00:42]} e6 {[%emt 0:00:24]} 45. Rf2 {[%emt 0:02:22]} Kd5 {[%emt 0:00:49]} 46. Rd2 {[%emt 0:00:19]} Kc4 {[%emt 0:00:08]} 47. Re2 {[%emt 0:00:40]} Kd5 {[%emt 0:00:30]} 48. Kd2 {[%emt 0:06:00]} Rb3 {[%emt 0:00:29]} 49. Ke1 {[%emt 0:00:00]} c5 {[%emt 0:00:31]} 50. dxc5 {[%emt 0:00:00]} Kxc5 {[%emt 0:00:04]} 51. Kf2 {[%emt 0:00:00]} Kd5 {[%emt 0:00:28]} 52. g4 {[%emt 0:00:00]} Rh3 {[%emt 0:00:35]} 53. Kg2 {[%emt 0:00:00]} Rb3 {[%emt 0:00:26]} 54. g5 {[%emt 0:00:00]} b4 {[%emt 0:00:06]} 55. a4 {[%emt 0:00:00]} Kd6 {[%emt 0:00:43]} 56. g6 {[%emt 0:00:00]} Ke7 {[%emt 0:00:06]} 57. g7 {[%emt 0:00:00]} Kf7 {[%emt 0:00:03]} 58. Rf2+ {[%emt 0:00:00]} 1-0

[Event "Asian Amateur Rapid 2024"]
[Site "Al Ain"]
[Date "2024.12.15"]
[Round "2.29"]
[White "Khalifah, Khaled"]
[Black "Shafaghati, Rastin"]
[Result "1-0"]
[ECO "E99"]
[WhiteElo "1962"]
[BlackElo "1575"]
[Annotator "RC"]
[PlyCount "67"]
[EventDate "2024.12.15"]
[EventType "swiss"]
[EventCountry "UAE"]
[SourceTitle "playchess.com"]
[Source "ChessBase"]
[SourceQuality "1"]
[TimeControl "900+10"]

1. d4 {[%emt 0:00:03]} Nf6 {[%emt 0:00:01]} 2. c4 {[%emt 0:00:02]} g6 {[%emt 0:00:08]} 3. Nc3 {[%emt 0:00:03]} Bg7 {[%emt 0:00:02]} 4. e4 {[%emt 0:00:01]} d6 {[%emt 0:00:02]} 5. Nf3 {[%emt 0:00:01]} O-O {[%emt 0:00:01]} 6. Be2 {[%emt 0:00:01]} e5 {[%emt 0:00:03]} 7. O-O {[%emt 0:00:03]} Nc6 {[%emt 0:00:02]} 8. d5 {[%emt 0:00:02]} Ne7 {[%emt 0:00:01]} 9. Ne1 {[%emt 0:00:01]} Nd7 {[%emt 0:00:03]} 10. Nd3 {[%emt 0:00:04]} f5 {[%emt 0:00:02]} 11. f3 {[%emt 0:00:01]} Nf6 {[%emt 0:00:04]} 12. Bd2 {[%emt 0:00:17]} Kh8 {[%emt 0:00:11]} 13. b4 {[%emt 0:00:06]} f4 {[%emt 0:00:05]} 14. g4 {[%emt 0:00:05]} fxg3 {[%emt 0:00:19]} 15. hxg3 {[%emt 0:00:01]} Bh3 {[%emt 0:00:33]} 16. Rf2 {[%emt 0:00:01]} Bd7 {[%emt 0:00:29]} 17. c5 {[%emt 0:00:07]} Nh5 {[%emt 0:00:13]} 18. Kg2 {[%emt 0:00:16]} b6 {[%emt 0:01:57]} 19. Rc1 {[%emt 0:00:45]} a5 {[%emt 0:00:55]} 20. a3 {[%emt 0:00:02]} axb4 {[%emt 0:00:42]} 21. axb4 {[%emt 0:00:01]} Ng8 {[%emt 0:00:52]} 22. Rf1 {[%emt 0:00:48]} Bh6 {[%emt 0:00:49]} 23. Bxh6 {[%emt 0:00:20]} Nxh6 {[%emt 0:00:02]} 24. Qd2 {[%emt 0:00:00]} Nf7 {[%emt 0:00:23]} 25. Ra1 {[%emt 0:00:30]} bxc5 {[%emt 0:01:01]} 26. bxc5 {[%emt 0:00:01]} Qb8 {[%emt 0:01:36]} 27. c6 {[%emt 0:00:30]} Bc8 {[%emt 0:00:24]} 28. Rfb1 {[%emt 0:00:02]} Rxa1 {[%emt 0:00:03]} 29. Rxb8 {[%emt 0:00:16]} Bh3+ {[%emt 0:00:28]} 30. Kxh3 {[%emt 0:00:01]} Rxb8 {[%emt 0:00:02]} 31. Nc1 {[%emt 0:00:30]} Ra3 {[%emt 0:00:05]} 32. Nb5 {[%emt 0:00:05]} Ra1 {[%emt 0:00:23]} 33. Qc3 {[%emt 0:00:18]} Rxc1 {[%emt 0:00:06]} 34. Qxc1 {[%emt 0:00:03]} 1-0